bitfinex/quotes_ETHUSD_20251214
["timestamp","ask_amount","ask_price","bid_price","bid_amount"]
[1765751914845,0.001,3062.6,3062.1,0.1922]
[1765751914846,0.466,3062.6,3062.1,0.1922]
[1765751915014,0.466,3062.6,3062.1,0.6809]
[1765751915211,0.466,3062.6,3062.1,0.1922]
[1765751915407,0.466,3062.6,3061.6,0.002]
[1765751915408,0.1812,3062.2,3061.6,0.002]
[1765751915607,0.6511,3061.8,3061.6,0.002]
[1765751915847,4.49762793,3061.8,3061.6,0.002]
[1765751916016,5.47172793,3061.8,3061.6,0.002]
[1765751916222,6.34971478,3061.8,3061.6,0.002]
[1765751917210,6.75521878,3061.8,3061.6,0.002]
[1765751917416,6.75521878,3061.8,3061.6,1e-08]
[1765751917417,1.62207929,3061.7,3061.6,1e-08]
[1765751917616,5.05507929,3061.7,3061.6,1e-08]
[1765751917826,6.2100651,3061.7,3061.6,1e-08]
[1765751918142,6.7320651,3061.7,3061.6,1e-08]
[1765751918329,6.2100651,3061.7,3061.6,1e-08]
[1765751918524,6.7320651,3061.7,3061.6,1e-08]
[1765751918728,6.77427426,3061.7,3061.6,1e-08]
[1765751919128,10.04043358,3061.7,3060.5,0.002]
[1765751919451,6.5421986,3061.5,3060.5,0.002]
[1765751919857,9.80857129,3061.5,3060.5,0.002]
[1765751920043,10.26067129,3061.5,3060.5,0.002]
[1765751920350,10.30703179,3061.5,3060.5,0.002]
[1765751920553,10.82903179,3061.5,3060.5,0.002]
[1765751920722,12.5186882,3061.5,3060.5,0.002]
[1765751921853,0.98597929,3061.4,3060.5,0.002]
[1765751922020,0.3756,3060.6,3060.5,0.002]
[1765751922226,0.8976,3060.6,3060.5,0.002]
[1765751922423,1.39190916,3060.6,3060.5,0.002]
[1765751922685,0.86990916,3060.6,3060.5,0.002]
[1765751922818,1.39190916,3060.6,3060.5,0.002]
[1765751923950,5.23971765,3060.6,3060.5,0.002]
[1765751924153,6.09041034,3060.6,3060.5,0.002]
[1765751924652,5.59610118,3060.6,3060.5,0.002]
[1765751926471,4.88520118,3060.6,3060.5,0.002]
[1765751926639,0.522,3060.6,3060.5,0.9819]
[1765751926825,0.58047529,3061.3,3060.5,0.9819]
[1765751927022,0.13079054,3062.0,3060.5,0.9819]
[1765751927023,0.04220916,3061.9,3061.1,0.6736]
[1765751927325,0.522,3061.7,3061.6,0.4912]
[1765751927941,0.522,3061.7,3061.2,0.4887]
[1765751928726,3.266266,3061.6,3061.2,0.4887]
[1765751928931,6.532532,3061.6,3061.2,0.4887]
[1765751929353,0.522,3061.5,3061.2,0.4887]
[1765751930781,3.78847582,3061.5,3061.2,0.4887]
[1765751931089,3.78847582,3061.5,3061.4,0.4912]
[1765751933390,0.522,3061.5,3061.4,0.9799]
[1765751933694,3.26629901,3061.6,3061.4,0.9799]
[1765751933895,0.522,3061.5,3061.2,0.4887]
[1765751934599,0.465,3061.3,3061.1,0.002]
[1765751934790,0.50720916,3061.3,3061.1,0.002]
[1765751935362,3.2666928,3061.2,3061.1,0.002]
[1765751935558,3.84716809,3061.2,3061.1,0.002]
[1765751935894,5.07426324,3061.2,3061.1,0.002]
[1765751937577,4.55078795,3061.2,3061.1,0.4645]
[1765751937776,5.04758795,3061.2,3061.1,0.002]
[1765751938506,5.53878795,3061.2,3061.1,0.002]
[1765751938674,6.11926324,3061.2,3061.1,0.002]
[1765751939495,9.55826324,3061.2,3061.1,0.002]
[1765751939661,9.96376724,3061.2,3061.1,0.002]
[1765751939865,9.44176724,3061.2,3061.1,0.002]
[1765751940065,6.52476724,3061.2,3061.1,0.002]
[1765751940710,5.59726324,3061.2,3061.1,0.002]
[1765751940867,5.62806324,3061.2,3061.1,0.002]
[1765751941485,5.10606324,3061.2,3061.1,0.002]
[1765751941689,5.13126324,3061.2,3061.1,0.002]
[1765751941999,5.62806324,3061.2,3061.1,0.002]
[1765751942200,5.04758795,3061.2,3061.1,0.002]
[1765751942588,5.53878795,3061.2,3061.1,0.002]
[1765751943595,5.04758795,3061.2,3061.1,0.002]
[1765751943799,4.55078795,3061.2,3061.1,0.4645]
[1765751944000,3.26647938,3061.4,3061.1,1.1419]
[1765751944169,3.26647938,3061.4,3061.3,0.4625]
[1765751944370,3.78847938,3061.4,3061.3,0.4625]
[1765751944619,0.001,3061.5,3061.3,0.9575]
[1765751944818,0.001,3061.5,3061.4,0.4625]
[1765751945020,0.001,3061.5,3061.4,0.9575]
[1765751945596,0.001,3061.5,3061.4,5.20995867]
[1765751945820,0.001,3061.5,3061.4,6.38428009]
[1765751950036,0.001,3061.5,3061.4,8.51101509]
[1765751950223,0.001,3061.5,3061.4,6.38428009]
[1765751951735,0.001,3061.5,3061.4,6.90628009]
[1765751952142,0.001,3061.5,3061.4,5.97877609]
[1765751952352,0.001,3061.5,3061.4,4.22397938]
[1765751952532,0.001,3061.5,3061.4,4.80445467]
[1765751952734,0.001,3061.5,3061.4,0.4625]
[1765751953334,0.001,3061.5,3061.4,0.9575]
[1765751954044,0.001,3061.5,3061.4,0.4625]
[1765751954249,0.001,3061.5,3061.4,0.9575]
[1765751954744,0.001,3061.5,3061.4,4.22397938]
[1765751955213,0.001,3061.5,3061.4,4.97324309]
[1765751956146,0.001,3061.5,3061.4,5.37874709]
[1765751956525,0.001,3061.5,3061.4,9.21774709]
[1765751958230,0.001,3061.5,3061.4,8.06297938]
[1765751962450,0.001,3061.5,3061.4,4.22397938]
[1765751963788,0.001,3061.5,3061.4,0.4625]
[1765751965362,0.001,3061.5,3061.4,3.72897938]
[1765751965586,0.001,3061.5,3061.4,4.22397938]
[1765751967213,0.001,3061.5,3061.4,0.4625]
[1765751968312,0.001,3061.5,3061.4,3.72897938]
[1765751970095,0.001,3061.5,3061.4,0.4625]
[1765751971919,0.001,3061.5,3061.4,0.9192]
[1765751972890,0.001,3061.5,3061.4,4.18567938]
[1765751975732,0.001,3061.5,3061.4,3.72897938]
[1765751975950,0.001,3061.5,3061.4,5.97514303]
[1765751976106,3.26622304,3062.6,3061.4,7.79894312]
[1765751976310,0.4549,3062.5,3061.5,1.03717529]
[1765751977037,0.4549,3062.5,3061.4,0.002]
[1765751977038,0.6413,3061.6,3061.4,0.002]
[1765751977238,0.1855,3061.5,3061.4,0.002]
[1765751977446,0.6404,3061.5,3061.4,0.002]
[1765751977807,3.90677269,3061.5,3061.4,0.002]
[1765751978010,1.48597529,3061.4,3061.1,0.002]
[1765751978206,0.1872,3061.2,3061.1,0.002]
[1765751978403,0.405504,3061.0,3060.4,0.002]
[1765751978630,5.63887291,3060.6,3060.4,0.002]
[1765751978860,5.63887291,3060.6,3060.1,0.002]
[1765751978861,0.4573,3060.4,3060.1,0.002]
[1765751979073,0.1707,3060.2,3060.1,0.002]
[1765751979564,0.6256,3060.2,3060.1,0.002]
[1765751979729,4.47383556,3060.2,3060.1,0.002]
[1765751981560,4.99483556,3060.2,3060.1,0.002]
[1765751981762,5.82108226,3060.2,3060.1,0.002]
[1765751986275,5.82108226,3060.2,3059.1,0.002]
[1765751986276,1.89527929,3060.1,3059.1,0.002]
[1765751986450,6.07028607,3060.0,3059.1,0.002]
[1765751986654,6.52518607,3060.0,3059.1,0.002]
[1765751986842,7.9659814,3060.0,3059.1,0.002]
[1765751987771,0.405504,3059.8,3059.1,0.002]
[1765751987940,0.75517529,3059.3,3059.1,0.002]
[1765751988146,0.75517529,3059.3,3058.8,0.002]
[1765751988147,0.405504,3059.1,3058.8,0.002]
[1765751988448,6.9825569,3059.2,3058.8,0.002]
[1765751988449,1.34787929,3058.9,3058.8,0.002]
[1765751988638,1.46437529,3058.9,3058.8,0.002]
[1765751988838,1.91927529,3058.9,3058.8,0.002]
[1765751989482,2.32477929,3058.9,3058.8,0.002]
[1765751990137,5.59392833,3058.9,3058.8,0.002]
[1765751990887,5.59392833,3058.9,3057.6,0.002]
[1765751990888,4.86859762,3058.2,3057.6,0.002]
[1765751991101,0.4422,3057.7,3057.6,0.002]
[1765751991268,0.522,3057.7,3057.6,0.002]
[1765751991660,0.522,3057.7,3057.6,0.9573]
[1765751991952,0.522,3057.8,3057.6,0.9573]
[1765751992695,0.522,3057.8,3057.6,0.002]
[1765751993980,3.79236379,3057.8,3057.6,0.002]
[1765751994201,0.4573,3057.7,3057.6,0.002]
[1765751994759,3.72773202,3057.7,3057.6,0.002]
[1765751994959,0.4573,3057.7,3057.6,0.002]
[1765751995161,3.72773202,3057.7,3057.6,0.002]
[1765751995461,4.18263202,3057.7,3057.6,0.002]
[1765751995891,3.79235586,3057.8,3057.6,0.002]
[1765751996111,5.795266,3057.7,3057.6,0.002]
[1765751996403,6.37574129,3057.7,3057.6,0.002]
[1765751996692,9.64617331,3057.7,3057.6,0.002]
[1765751997255,10.05167731,3057.7,3057.6,0.002]
[1765751998487,6.16596063,3057.7,3057.6,0.002]
[1765751998690,6.16596063,3057.7,3056.5,0.4534]
[1765751998691,6.16596063,3057.7,3056.3,0.002]
[1765751998692,0.405504,3057.5,3056.3,0.002]
[1765751998892,1.21957529,3057.6,3055.5,3.27578677]
[1765751998893,0.168,3056.2,3055.5,3.27578677]
[1765751999194,0.168,3056.2,3055.5,6.54857354]
[1765751999413,0.168,3056.2,3056.1,0.4968]
[1765751999700,0.691,3056.2,3056.1,0.6792]
[1765752000000,0.168,3056.2,3056.1,1.1326]
[1765752000156,3.45472154,3057.9,3056.1,1.0326]
[1765752000497,0.4784,3058.2,3057.8,0.4693]
[1765752000498,0.691,3058.2,3057.8,0.4693]
[1765752000662,0.001,3058.9,3058.1,0.5712]
[1765752000863,0.001,3058.9,3058.8,0.4693]
[1765752001368,1.05887529,3061.0,3059.1,0.405504]
[1765752001697,3.26677761,3061.2,3060.1,0.6515]
[1765752001698,0.524,3061.2,3060.1,0.6515]
[1765752001897,0.001,3061.4,3060.1,0.588704]
[1765752002095,0.001,3061.4,3060.4,0.98597929]
[1765752002258,0.001,3061.4,3060.5,0.405504]
[1765752002460,0.001,3061.4,3061.1,0.98597929]
[1765752002692,0.001,3061.4,3061.3,3.22069229]
[1765752002895,0.001,3062.8,3061.3,3.39789329]
[1765752003058,0.001,3062.8,3062.5,0.141]
[1765752003589,0.001,3062.8,3062.5,0.5944]
[1765752004317,0.001,3062.8,3062.7,13.284598]
[1765752004461,0.001,3062.8,3062.7,10.25624049]
[1765752004656,0.001,3062.8,3062.7,17.15155238]
[1765752005465,0.001,3062.8,3062.7,0.4534]
[1765752006508,0.001,3062.8,3062.7,3.71849289]
[1765752007113,0.001,3062.8,3059.9,1.68192788]
[1765752007114,0.4794,3062.8,3061.0,0.141]
[1765752007393,0.4794,3062.8,3061.2,3.72008903]
[1765752007607,0.4794,3062.8,3061.0,0.141]
[1765752007765,0.4794,3062.8,3061.0,0.5944]
[1765752007964,0.4794,3062.8,3061.2,3.26668842]
[1765752008568,0.4794,3062.8,3061.3,0.405504]
[1765752009167,0.4794,3062.8,3061.0,3.98837214]
[1765752009168,0.04220916,3062.2,3061.0,0.141]
[1765752009368,0.04220916,3062.2,3061.0,0.6053]
[1765752009592,0.04220916,3062.2,3061.1,0.405504]
[1765752010304,0.62268445,3062.6,3061.3,0.405504]
[1765752010487,0.04220916,3062.6,3061.3,0.405504]
[1765752010794,3.26600011,3062.8,3061.5,0.405504]
[1765752011298,6.53100022,3062.8,3061.7,0.58047529]
[1765752012794,6.53100022,3062.8,3061.7,3.26613114]
[1765752012996,7.05500022,3062.8,3061.7,3.26613114]
[1765752013196,0.72463002,3062.7,3061.7,3.26613114]
[1765752014097,0.72463002,3062.7,3061.1,3.26670168]
[1765752014098,0.04220916,3062.3,3060.9,0.4643]
[1765752014300,0.04220916,3062.1,3060.9,3.26697602]
[1765752014518,0.04220916,3061.8,3060.4,3.2675161]
[1765752014668,0.04220916,3061.8,3060.5,0.405504]
[1765752014868,0.1959,3061.7,3060.7,0.58047529]
[1765752015209,0.524,3061.6,3060.8,3.26701889]
[1765752015366,0.524,3061.6,3060.6,0.58047529]
[1765752015562,0.9847,3061.6,3060.5,3.26733389]
[1765752015767,0.04220916,3061.5,3060.6,0.58047529]
[1765752015987,3.26647938,3061.4,3060.6,0.58047529]
[1765752016204,0.37693885,3061.3,3060.7,0.58047529]
[1765752016606,0.37693885,3061.3,3060.2,0.524]
[1765752016805,0.4607,3061.2,3060.0,0.4643]
[1765752017115,0.4607,3061.2,3059.7,3.7325026]
[1765752017116,0.524,3061.1,3059.7,3.7325026]
[1765752017425,0.524,3061.1,3059.9,0.0916]
[1765752017719,0.4607,3061.0,3059.9,0.0916]
[1765752018019,0.524,3061.0,3060.0,0.4643]
[1765752018808,0.76378609,3061.0,3060.2,0.405504]
[1765752019113,0.37693885,3061.3,3060.2,0.405504]
[1765752019316,0.37693885,3061.3,3060.4,0.405504]
[1765752019709,3.64361817,3061.3,3060.4,0.405504]
[1765752019907,7.41320665,3061.3,3060.1,0.58047529]
[1765752020122,6.53359902,3061.1,3060.1,0.58047529]
[1765752020989,6.53359902,3061.1,3060.1,3.26784538]
[1765752021190,6.99429902,3061.1,3060.0,3.67538937]
[1765752021415,6.99429902,3061.1,3060.1,0.58047529]
[1765752021713,6.99429902,3061.1,3060.0,3.67538937]
[1765752021714,0.04220916,3060.8,3060.0,0.002]
[1765752022014,3.26722645,3060.7,3060.0,0.002]
[1765752022229,7.1910529,3060.7,3060.0,0.002]
[1765752022428,0.4607,3060.6,3060.0,0.002]
[1765752022589,0.525,3060.5,3060.0,0.002]
[1765752022989,0.4607,3060.4,3060.0,0.002]
[1765752023191,0.525,3060.3,3060.0,0.002]
[1765752024014,0.4607,3060.4,3060.0,0.002]
[1765752024220,0.525,3060.3,3060.0,0.002]
[1765752024525,0.42532559,3060.2,3060.0,0.002]
[1765752024907,0.95032559,3060.2,3060.0,0.002]
[1765752026231,0.525,3060.2,3060.0,0.002]
[1765752026427,3.77026251,3060.6,3060.0,0.002]
[1765752026428,0.04220916,3060.6,3060.0,0.002]
[1765752026593,0.525,3060.5,3060.1,0.4644]
[1765752027191,0.525,3060.5,3060.0,0.002]
[1765752027400,0.38345523,3060.4,3060.0,0.002]
[1765752028827,0.77356197,3061.0,3060.3,0.4644]
[1765752029129,0.525,3060.9,3060.4,0.4644]
[1765752029931,6.53374136,3061.1,3060.4,0.4644]
[1765752030131,0.525,3060.9,3060.4,0.4644]
[1765752030327,0.04220916,3061.5,3060.4,0.4644]
[1765752030530,0.525,3061.4,3060.8,0.4644]
[1765752030696,0.38335896,3061.3,3060.8,0.4644]
[1765752031329,0.525,3061.2,3060.8,0.4644]
[1765752033029,4.28799791,3061.2,3060.3,0.4502]
[1765752033237,0.04220916,3061.1,3060.4,0.58047529]
[1765752033393,0.04220916,3061.1,3060.0,0.002]
[1765752033394,0.04220916,3060.9,3060.0,0.002]
[1765752033597,0.04220916,3060.5,3060.0,0.002]
[1765752033841,0.4848,3060.1,3060.0,0.002]
[1765752034019,1.0098,3060.1,3060.0,0.002]
[1765752034328,4.77396706,3060.1,3060.0,0.002]
[1765752034533,5.57813789,3060.1,3060.0,0.002]
[1765752036823,5.08183789,3060.1,3060.0,0.002]
[1765752037137,5.08083789,3060.1,3060.0,0.002]
[1765752037443,0.04220916,3060.5,3060.0,0.4664]
[1765752037626,0.524,3060.4,3060.0,0.4664]
[1765752037935,0.524,3060.4,3060.0,0.002]
[1765752038237,0.04220916,3060.3,3060.0,0.002]
[1765752038440,3.26776027,3060.2,3060.0,0.002]
[1765752038741,0.65777132,3060.1,3060.0,0.002]
[1765752039037,2.26155577,3060.1,3060.0,0.002]
[1765752039398,2.66705977,3060.1,3058.8,0.002]
[1765752039601,1.0203,3060.0,3058.8,0.002]
[1765752039896,0.5102,3058.9,3058.8,0.002]
[1765752040103,0.524,3059.6,3058.8,0.002]
[1765752040304,0.72340916,3059.9,3058.8,4.18784347]
[1765752040503,0.524,3059.8,3058.8,7.87608373]
[1765752040706,0.524,3059.8,3058.9,0.4502]
[1765752041703,0.524,3059.8,3058.8,0.002]
[1765752041704,0.04220916,3059.5,3058.8,0.002]
[1765752041931,0.04220916,3059.3,3058.8,0.002]
[1765752042412,6.5376569,3059.2,3058.8,0.002]
[1765752042614,0.4848,3058.9,3058.8,0.002]
[1765752042814,1.0088,3058.9,3058.8,0.002]
[1765752043529,1.5051,3058.9,3058.8,0.002]
[1765752044502,4.77424904,3058.9,3058.8,0.002]
[1765752045925,3.75394904,3058.9,3058.8,0.002]
[1765752046241,5.05522942,3058.9,3058.8,0.002]
[1765752047839,4.53122942,3058.9,3058.8,0.002]
[1765752048048,4.57042942,3058.9,3058.8,0.002]
[1765752048628,0.77728038,3058.9,3058.8,0.002]
[1765752048844,0.524,3058.9,3058.8,0.002]
[1765752049139,0.524,3058.9,3058.8,0.4684]
[1765752049543,0.04220916,3059.5,3058.8,0.9186]
[1765752049745,3.31040562,3059.8,3059.4,0.6084]
[1765752049951,0.524,3059.7,3059.4,0.6084]
[1765752050243,3.31040562,3059.8,3059.4,0.6084]
[1765752050244,0.524,3059.8,3059.4,0.6084]
[1765752052148,3.26829427,3059.7,3059.4,0.6084]
[1765752052516,3.79222534,3059.8,3059.4,0.6084]
[1765752053046,0.524,3059.8,3059.4,0.6084]
[1765752053345,0.76537529,3060.4,3059.7,0.4664]
[1765752053346,3.30994172,3060.3,3059.7,0.4664]
[1765752053680,3.30925834,3060.9,3059.8,0.4664]
[1765752053681,0.1849,3060.6,3059.8,0.4664]
[1765752053946,3.2671197,3060.8,3059.8,0.4664]
[1765752053947,0.58047529,3060.7,3059.8,0.4664]
[1765752054157,3.2671197,3060.8,3060.0,3.26797385]
[1765752054354,0.524,3060.6,3060.0,3.26797385]
[1765752054570,0.524,3060.6,3060.1,0.0917]
[1765752055214,0.524,3060.6,3060.1,0.5419]
[1765752055414,0.524,3060.6,3060.1,3.80974357]
[1765752055860,0.524,3060.6,3060.5,0.4664]
[1765752056356,0.524,3060.9,3060.5,0.4664]
[1765752056555,3.45161017,3061.2,3060.5,0.9328]
[1765752056715,0.524,3061.1,3060.5,0.9328]
[1765752056916,0.04220916,3061.4,3060.5,0.9328]
[1765752057117,2.27664993,3061.6,3060.6,0.4664]
[1765752057118,0.524,3061.5,3060.6,0.4664]
[1765752057422,3.79018563,3061.7,3060.7,3.26722645]
[1765752057831,0.1923,3062.2,3060.8,0.4664]
[1765752058152,0.524,3062.0,3060.8,1.04687529]
[1765752058343,0.56620916,3062.0,3060.8,1.04687529]
[1765752058655,0.94214207,3062.0,3061.0,0.405504]
[1765752059162,0.94214207,3062.0,3061.1,0.1163]
[1765752059452,3.26594598,3061.9,3061.1,3.3830364]
[1765752059665,4.16578084,3062.0,3061.1,3.8494364]
[1765752059958,4.16578084,3062.0,3061.2,0.4664]
[1765752060642,0.4877,3062.5,3061.3,0.405504]
[1765752060843,0.524,3062.4,3061.3,0.405504]
[1765752061251,1.0117,3062.4,3061.3,0.871904]
[1765752061465,1.0117,3062.4,3061.2,0.58047529]
[1765752061466,1.0117,3062.4,3059.4,0.002]
[1765752061467,3.26840109,3059.6,3059.4,0.002]
[1765752061647,1.611204,3059.5,3059.4,0.002]
[1765752061850,1.26217529,3059.5,3059.4,0.002]
[1765752062034,2.97557441,3059.5,3059.4,0.002]
[1765752062965,6.24408233,3059.5,3059.4,0.002]
[1765752065639,0.0878,3059.8,3059.4,0.002]
[1765752065838,0.194,3059.6,3059.4,0.002]
[1765752068441,3.26800996,3060.0,3059.4,0.002]
[1765752068647,1.06817529,3060.2,3059.4,0.002]
[1765752068648,3.26808065,3059.9,3059.4,0.002]
[1765752068842,0.194,3059.8,3059.4,0.002]
[1765752069341,0.194,3060.8,3059.7,0.4717]
[1765752069556,0.723,3060.8,3059.8,0.9662]
[1765752069873,0.723,3060.8,3059.4,0.002]
[1765752069874,0.194,3060.6,3059.4,0.002]
[1765752070038,0.001,3060.0,3059.4,0.002]
[1765752070238,0.53,3060.0,3059.4,0.002]
[1765752070438,3.26808065,3059.9,3059.4,0.002]
[1765752070739,3.26808065,3059.9,3059.4,0.4965]
[1765752070935,3.79799464,3060.0,3059.4,0.4965]
[1765752071990,0.4554,3059.5,3059.4,0.002]
[1765752072278,1.1784,3059.5,3059.4,0.002]
[1765752072581,5.52648721,3059.5,3059.4,0.002]
[1765752073443,6.40597427,3059.5,3059.4,0.002]
[1765752074473,0.58047529,3059.4,3058.1,0.6013]
[1765752074676,0.194,3059.3,3058.1,0.6013]
[1765752076576,0.194,3059.1,3058.1,0.6013]
[1765752076766,1.20216569,3059.0,3058.1,0.6013]
[1765752077673,0.529,3058.9,3058.1,0.6013]
[1765752078054,0.529,3058.9,3058.1,3.87129167]
[1765752078254,0.529,3058.9,3058.1,0.6013]
[1765752078484,0.528,3058.8,3058.2,0.4945]
[1765752078684,3.2693628,3058.7,3058.2,0.4945]
[1765752080886,0.67316569,3059.0,3058.2,0.4945]
[1765752081184,3.26914904,3058.9,3058.2,0.4945]
[1765752081373,3.79714904,3058.9,3058.2,0.4945]
[1765752081574,7.06629808,3058.9,3058.2,0.4945]
[1765752082262,3.26914904,3058.9,3058.2,0.4945]
[1765752082652,0.528,3058.8,3058.2,0.4945]
[1765752083584,3.26861476,3059.4,3058.7,0.4717]
[1765752083796,3.26861476,3059.4,3058.8,0.4717]
[1765752083797,0.528,3059.1,3058.8,0.4717]
[1765752083997,3.26861476,3059.4,3058.8,0.4717]
[1765752084185,0.528,3059.5,3058.9,0.4945]
[1765752084388,3.26841892,3059.6,3058.9,0.4945]
[1765752084558,0.528,3059.6,3058.9,3.76361415]
[1765752084759,0.528,3059.6,3058.9,4.46689979]
[1765752084958,0.528,3059.6,3059.5,0.4717]
[1765752085188,0.001,3059.7,3059.5,0.4717]
[1765752085189,0.001,3059.7,3059.5,0.9662]
[1765752085363,0.001,3059.7,3059.6,0.4717]
[1765752085571,0.001,3059.7,3059.6,0.9662]
[1765752086492,0.001,3059.7,3059.6,4.23460109]
[1765752086684,0.001,3059.7,3059.6,5.58381877]
[1765752086891,0.001,3059.7,3059.6,5.98932277]
[1765752087989,0.001,3059.7,3059.6,5.58381877]
[1765752088191,0.001,3059.7,3059.6,1.05217529]
[1765752088768,0.001,3059.7,3059.6,1.51077529]
[1765752089305,0.001,3059.7,3059.6,0.4717]
[1765752089591,0.001,3059.7,3059.4,0.1843]
[1765752089892,0.001,3059.7,3059.4,0.6429]
[1765752090090,0.001,3059.7,3059.4,0.1843]
[1765752090462,0.001,3059.7,3059.6,0.4765]
[1765752090787,0.001,3059.7,3059.4,3.93398377]
[1765752091095,0.001,3059.7,3059.6,0.4765]
[1765752091614,0.001,3059.7,3059.1,1.2075]
[1765752091782,0.001,3059.7,3058.8,0.002]
[1765752091983,0.528,3059.6,3058.8,0.002]
[1765752092500,0.001,3059.7,3058.8,0.4831]
[1765752092993,3.2692993,3059.7,3058.8,0.4831]
[1765752093194,3.61479923,3059.7,3058.8,0.4831]
[1765752093402,0.001,3059.7,3058.8,0.4831]
[1765752093705,3.26929584,3059.7,3058.8,0.4831]
[1765752094018,0.001,3059.7,3058.8,0.4831]
[1765752094509,0.001,3059.7,3058.9,3.26914904]
[1765752095009,0.001,3059.7,3059.0,0.4811]
[1765752095214,0.72599762,3059.7,3059.0,0.4811]
[1765752095410,0.72599762,3059.7,3059.1,0.1984]
[1765752096585,3.99432685,3059.7,3059.1,0.1984]
[1765752100320,0.72599762,3059.7,3059.1,0.1984]
[1765752100697,3.99430681,3059.7,3059.1,0.1984]
[1765752100896,3.26930919,3059.7,3059.1,0.1984]
[1765752102125,3.26930919,3059.7,3059.1,0.6795]
[1765752103908,3.26930919,3059.7,3059.1,0.1984]
[1765752105328,7.00541838,3059.7,3058.8,0.529]
[1765752105530,7.00541838,3059.7,3058.8,0.002]
[1765752105724,0.4678,3059.6,3058.8,0.002]
[1765752105909,0.70054184,3059.5,3058.8,0.002]
[1765752106531,0.2642,3058.9,3058.8,0.002]
[1765752106828,0.7902,3058.9,3058.8,0.002]
[1765752107020,1.2552,3058.9,3058.8,0.002]
[1765752107217,4.52434904,3058.9,3058.8,0.002]
[1765752107526,5.30368704,3058.9,3058.8,0.002]
[1765752110134,3.79514904,3058.9,3058.8,0.002]
[1765752110436,3.26914904,3058.9,3058.8,0.002]
[1765752110934,3.26914904,3058.9,3058.8,0.4785]
[1765752111700,3.26914904,3058.9,3058.8,0.002]
[1765752112117,0.526,3059.1,3058.8,0.002]
[1765752112331,1.23234432,3059.1,3058.8,0.002]
[1765752113929,0.70634432,3059.1,3058.8,0.002]
[1765752114128,3.26914904,3058.9,3058.8,0.002]
[1765752115157,0.001,3060.0,3058.9,0.4811]
[1765752115311,0.001,3060.0,3059.2,0.4765]
[1765752115712,0.7117,3059.9,3059.3,0.6795]
[1765752116139,3.26818746,3059.8,3059.3,0.6795]
[1765752116910,3.26818746,3059.8,3059.4,0.4993]
[1765752117668,0.0814,3059.5,3058.8,0.002]
[1765752117810,0.6571,3058.9,3058.8,0.002]
[1765752118118,3.92624904,3058.9,3058.8,0.002]
[1765752118451,4.00324904,3058.9,3058.8,0.002]
[1765752119519,4.52924904,3058.9,3058.8,0.002]
[1765752120334,5.63608007,3058.9,3058.8,0.002]
[1765752120818,5.37418007,3058.9,3058.8,0.002]
[1765752121145,5.63608007,3058.9,3058.8,0.002]
[1765752121558,0.001,3059.1,3058.8,0.4965]
[1765752121861,0.001,3059.1,3059.0,0.4945]
[1765752122224,0.001,3059.1,3059.0,4.84331746]
[1765752123060,0.001,3059.1,3059.0,5.24882146]
[1765752123660,0.001,3059.1,3059.0,35.24882146]
[1765752123827,0.001,3059.1,3059.0,38.45842459]
[1765752125072,0.001,3059.7,3059.0,38.45842459]
[1765752125073,0.001,3059.7,3059.3,0.405504]
[1765752125252,0.001,3059.7,3059.6,36.54524584]
[1765752125640,0.001,3059.7,3059.6,37.04454584]
[1765752126763,0.001,3059.7,3059.6,40.31294693]
[1765752126966,0.001,3059.7,3059.6,40.75650849]
[1765752129695,0.001,3059.7,3059.6,35.87994194]
[1765752129892,0.001,3059.7,3059.6,5.29946665]
[1765752130064,0.001,3059.7,3059.6,5.87994194]
[1765752130762,0.001,3059.7,3059.6,4.89396265]
[1765752130955,0.001,3059.7,3059.6,39.7705292]
[1765752131158,0.001,3059.7,3059.6,40.75650849]
[1765752131678,0.001,3061.3,3060.4,17.577243]
[1765752131975,0.001,3061.3,3060.9,0.900004]
[1765752132149,0.001,3061.3,3060.9,31.48047929]
[1765752132347,0.001,3061.3,3060.9,31.97977929]
[1765752132765,0.001,3061.3,3060.9,35.24679226]
[1765752132982,0.001,3061.3,3060.9,5.24679226]
[1765752133279,0.001,3061.3,3060.9,6.0981851]
[1765752133476,0.001,3061.3,3060.9,8.4043781]
[1765752133665,0.001,3061.3,3060.9,6.0981851]
[1765752135018,0.001,3061.3,3060.6,4.87656655]
[1765752135019,0.0923,3061.0,3060.6,3.26730201]
[1765752135199,0.0923,3061.0,3060.5,3.79343319]
[1765752135351,0.094,3060.6,3059.4,0.4993]
[1765752135557,0.3753,3060.4,3059.6,0.7142]
[1765752135964,0.3753,3060.4,3059.7,0.58047529]
[1765752136291,0.1809,3060.7,3059.7,1.07977529]
[1765752136665,0.1809,3060.7,3059.8,0.904804]
[1765752136870,0.1809,3060.7,3059.9,3.26808065]
[1765752137083,0.1809,3060.7,3060.0,0.7441058]
[1765752137268,3.44813106,3060.7,3060.0,0.7441058]
[1765752138373,0.1809,3060.7,3060.0,0.7441058]
[1765752138900,3.90592908,3060.7,3059.9,0.58047529]
[1765752139595,0.6387,3060.7,3059.9,0.58047529]
[1765752140795,0.1809,3060.7,3059.9,0.58047529]
[1765752141007,0.1809,3060.7,3060.0,3.26797385]
[1765752141370,0.001,3060.7,3060.0,3.26797385]
[1765752141569,0.001,3060.7,3060.1,1.26088123]
[1765752142200,0.001,3060.7,3060.6,0.4945]